bitfinex-derivatives/quotes_SOLF0:USTF0_20240930
["timestamp","ask_amount","ask_price","bid_price","bid_amount"]
[1727657354565,0.12502,158.15,158.07,1.2496]
[1727657354862,12.14,158.1,158.05,3.163]
[1727657355062,12.14,158.1,158.03,0.12502]
[1727657355264,12.14,158.1,158.05,3.163]
[1727657355772,3.1624,158.09,158.05,3.163]
[1727657356574,12.14,158.1,158.05,3.163]
[1727657356575,3.1624,158.08,158.05,3.163]
[1727657356764,12.14,158.1,158.03,3.28842]
[1727657356765,3.09119964,158.07,158.03,3.28842]
[1727657356965,12.14,158.08,158.03,3.28842]
[1727657357164,15.2374303,158.08,158.03,0.12502]
[1727657357465,12.14,158.06,158.03,0.12502]
[1727657357766,3.163,158.05,158.03,0.12502]
[1727657357974,12.14,158.06,158.03,0.12502]
[1727657358669,3.163,158.05,158.03,0.12502]
[1727657359465,3.1632,158.04,158.03,0.12502]
[1727657361663,3.11040615,158.06,158.03,0.12502]
[1727657361664,19.45,158.07,158.03,0.12502]
[1727657361861,1.2934,158.09,158.03,0.12502]
[1727657362061,13.90548134,158.09,158.03,0.12502]
[1727657362467,3.163,158.06,158.03,0.12502]
[1727657362676,3.19456166,158.08,158.03,0.12502]
[1727657362975,12.61208134,158.09,158.08,3.1624]
[1727657363165,0.12502,158.15,158.04,22.1697]
[1727657363361,22.80775188,158.13,158.04,22.1697]
[1727657363574,22.80775188,158.13,158.09,3.1621]
[1727657363871,22.80775188,158.13,158.04,22.1697]
[1727657364069,3.1614,158.14,158.1,3.1619]
[1727657364372,0.12502,158.15,158.05,1.2997]
[1727657364577,3.1618,158.12,158.08,3.1624]
[1727657365174,3.1618,158.12,158.09,3.1622]
[1727657365364,15.79270978,158.13,158.09,3.1622]
[1727657365672,3.1614,158.13,158.09,3.1622]
[1727657366264,15.79245872,158.13,158.1,3.162]
[1727657366574,3.1614,158.13,158.1,3.162]
[1727657366763,3.1614,158.13,158.05,1.2997]
[1727657366959,3.28622,158.15,158.05,1.2997]
[1727657367267,0.12502,158.15,158.06,19.45]
[1727657367469,12.75419221,158.15,158.06,19.45]
[1727657367779,0.12502,158.15,158.06,19.45]
[1727657368273,0.12502,158.15,158.12,3.1616]
[1727657368663,0.12502,158.15,158.13,3.1614]
[1727657368864,0.12502,158.15,158.06,19.45]
[1727657369780,0.12502,158.15,158.13,3.1613]
[1727657371165,0.12502,158.15,158.06,19.45]
[1727657371970,3.28622,158.15,158.11,3.1617]
[1727657372476,0.12502,158.15,158.11,3.1617]
[1727657372866,3.28612,158.15,158.11,3.1617]
[1727657373167,0.12502,158.15,158.13,3.1613]
[1727657373371,0.12502,158.15,158.06,19.45]
[1727657374673,0.12502,158.15,158.14,3.1612]
[1727657379772,3.1601,158.2,158.12,1.3446]
[1727657380277,22.86900557,158.21,158.12,1.3446]
[1727657380484,12.15,158.2,158.12,1.3446]
[1727657380782,34.89398557,158.2,158.12,1.3446]
[1727657380980,22.74398557,158.19,158.12,1.3446]
[1727657381191,0.12502,158.21,158.16,12.15]
[1727657381482,0.12502,158.21,158.2,3.16]
[1727657382187,71.48515412,158.26,158.19,1.3255]
[1727657382188,12.58112784,158.25,158.22,3.1596]
[1727657382381,14.7883,158.29,158.22,3.1596]
[1727657382382,22.71804223,158.28,158.22,3.1596]
[1727657382681,3.159,158.26,158.19,1.3255]
[1727657382978,22.84306223,158.27,158.21,3.1598]
[1727657383178,3.1592,158.25,158.21,3.1598]
[1727657383383,3.32637808,158.27,158.19,1.3255]
[1727657383580,3.32637808,158.27,158.22,3.1595]
[1727657383985,15.88737913,158.27,158.22,3.1595]
[1727657384181,3.32637808,158.27,158.22,3.1595]
[1727657384374,3.1588,158.26,158.22,3.1595]
[1727657385387,3.1588,158.26,158.19,2.6648]
[1727657385388,15.47637808,158.27,158.19,2.6648]
[1727657385587,15.47637808,158.27,158.19,1.3255]
[1727657385791,12.54754121,158.26,158.19,1.3255]
[1727657386389,3.16,158.2,158.16,3.1608]
[1727657386585,12.15,158.23,158.15,0.12502]
[1727657387788,3.1599,158.21,158.17,3.1605]
[1727657389191,12.15,158.23,158.15,3.28602]
[1727657389503,12.15,158.23,158.15,0.12502]
[1727657389886,3.1599,158.21,158.17,3.1606]
[1727657390583,12.15,158.25,158.18,3.1604]
[1727657390584,3.1596,158.23,158.18,3.1604]
[1727657391085,3.1596,158.23,158.18,3.1602]
[1727657391284,3.1598,158.22,158.15,12.27502]
[1727657391693,15.47637808,158.27,158.17,12.15]
[1727657391992,12.53103034,158.26,158.19,12.15]
[1727657392299,3.32637808,158.27,158.19,12.15]
[1727657392300,15.85740842,158.27,158.19,12.15]
[1727657392490,12.53103034,158.26,158.19,12.15]
[1727657392688,12.53103034,158.26,158.21,3.1597]
[1727657392689,3.1591,158.25,158.21,3.1597]
[1727657392889,3.32637808,158.27,158.21,3.1597]
[1727657393097,15.47637808,158.27,158.21,3.1597]
[1727657393301,3.1597,158.22,158.19,3.1602]
[1727657394493,12.15,158.25,158.2,3.16]
[1727657394494,3.1595,158.23,158.2,3.16]
[1727657394900,12.15,158.25,158.18,1.2833]
[1727657395200,3.1596,158.23,158.18,1.2833]
[1727657396502,3.1596,158.23,158.2,3.16]
[1727657397205,15.47637808,158.27,158.18,1.2833]
[1727657397206,3.1593,158.24,158.21,3.1597]
[1727657397401,3.32637808,158.27,158.21,3.1597]
[1727657397805,3.32637808,158.27,158.18,1.2833]
[1727657397806,3.1592,158.25,158.22,3.1596]
[1727657398007,3.32637808,158.27,158.19,12.15]
[1727657398305,3.32637808,158.27,158.18,1.2833]
[1727657399402,3.1594,158.24,158.21,3.1598]
[1727657400604,3.1591,158.25,158.22,3.1596]
[1727657401307,3.1591,158.25,158.21,3.1598]
[1727657401824,0.12502,158.27,158.25,3.1589]
[1727657402104,0.12502,158.27,158.24,12.15]
[1727657402307,0.12502,158.27,158.26,12.15]
[1727657402498,3.2157199,158.32,158.26,12.15]
[1727657402698,3.158,158.31,158.25,1.3127]
[1727657402899,3.09245169,158.31,158.26,3.1588]
[1727657403110,12.15,158.31,158.25,1.3127]
[1727657403302,3.1583,158.29,158.25,1.3127]
[1727657403504,3.1583,158.29,158.25,4.4717]
[1727657404011,15.36982884,158.31,158.25,4.4717]
[1727657404012,3.1585,158.28,158.25,4.4717]
[1727657405215,15.36982884,158.31,158.25,4.4717]
[1727657405216,3.1583,158.29,158.25,4.4717]
[1727657405411,15.36982884,158.31,158.25,4.4717]
[1727657406311,3.21982884,158.31,158.25,4.4717]
[1727657406509,12.15,158.32,158.25,4.4717]
[1727657406702,3.1584,158.29,158.25,4.4717]
[1727657408521,3.1588,158.27,158.23,3.1594]
[1727657408724,12.15,158.29,158.21,0.12502]
[1727657409620,3.159,158.26,158.22,3.1596]
[1727657410412,3.1591,158.25,158.22,3.1596]
[1727657410617,3.09944348,158.24,158.21,0.12502]
[1727657410913,3.159,158.26,158.21,0.12502]
[1727657411121,12.15,158.27,158.21,0.12502]
[1727657411314,1.262,158.28,158.22,3.1595]
[1727657411527,3.1587,158.27,158.21,0.12502]
[1727657411820,1.2802,158.31,158.22,12.15]
[1727657412009,4.46183171,158.32,158.22,12.15]
[1727657412212,3.1583,158.29,158.22,12.15]
[1727657412528,16.61183171,158.32,158.24,3.1591]
[1727657413223,3.1588,158.27,158.23,3.1594]
[1727657413416,12.15,158.3,158.23,3.1594]
[1727657413717,12.15,158.3,158.21,0.12502]
[1727657413909,4.46183171,158.32,158.21,0.12502]
[1727657413910,12.15,158.27,158.21,0.12502]
[1727657414114,12.15,158.25,158.21,0.12502]
[1727657414416,3.1596,158.22,158.21,0.12502]
[1727657414619,6.37236753,158.22,158.21,0.12502]
[1727657416515,6.37236753,158.22,158.15,0.12502]
[1727657416516,3.21276753,158.22,158.15,0.12502]
[1727657416726,12.15,158.2,158.15,0.12502]
[1727657417129,3.1601,158.2,158.15,0.12502]
[1727657417312,4.3657511,158.24,158.15,0.12502]
[1727657417729,3.1599,158.21,158.17,3.1605]
[1727657419424,3.1603,158.19,158.16,3.1608]
[1727657419620,3.1603,158.19,158.15,0.12502]
[1727657420224,3.1603,158.19,158.15,3.28592]
[1727657420524,3.1603,158.19,158.15,0.12502]
[1727657420525,12.15,158.19,158.15,0.12502]
[1727657421127,3.1608,158.17,158.15,0.12502]
[1727657421927,3.1167809,158.16,158.15,0.12502]
[1727657422623,6.2775809,158.16,158.15,0.12502]
[1727657423031,12.15,158.21,158.15,0.12502]
[1727657423223,3.1605,158.18,158.15,0.12502]
[1727657424120,12.15,158.21,158.15,0.12502]
[1727657424121,3.1607,158.17,158.15,0.12502]
[1727657424328,3.11425079,158.16,158.15,0.12502]
[1727657424626,1.2688,158.23,158.15,0.12502]
[1727657424627,12.15,158.18,158.15,0.12502]
[1727657424821,15.3108,158.16,158.15,0.12502]
[1727657425020,18.44422772,158.16,158.15,0.12502]
[1727657425325,3.1617,158.12,158.09,3.28722]
[1727657425524,12.15,158.14,158.09,3.28722]
[1727657426118,3.1616,158.13,158.09,3.28722]
[1727657426730,3.162,158.11,158.09,0.12502]
[1727657427028,15.24769121,158.14,158.09,0.12502]
[1727657427231,3.1618,158.12,158.09,0.12502]
[1727657428122,0.12502,158.21,158.09,0.12502]
[1727657428322,12.15,158.2,158.12,3.1615]
[1727657428923,3.1605,158.18,158.12,3.1615]
[1727657429126,12.15,158.2,158.12,3.1615]
[1727657429622,12.15,158.2,158.09,12.27502]
[1727657430231,12.15,158.2,158.13,3.1613]
[1727657431322,3.1604,158.19,158.11,12.15]
[1727657431516,0.12502,158.21,158.12,1.2693]
[1727657431827,12.15,158.2,158.13,3.1613]
[1727657432125,12.15,158.2,158.12,1.2693]
[1727657432529,12.15,158.2,158.13,3.1613]
[1727657432726,3.1605,158.18,158.13,3.1613]
[1727657432933,12.15,158.2,158.13,3.1613]
[1727657433229,12.15,158.2,158.12,1.2693]
[1727657433419,12.15,158.18,158.09,12.27502]
[1727657433615,12.15,158.18,158.09,0.12502]
[1727657433814,3.161,158.16,158.11,3.1618]
[1727657434030,3.16217432,158.15,158.09,12.27502]
[1727657434326,12.15,158.18,158.09,12.27502]
[1727657434525,3.1608,158.17,158.09,12.27502]
[1727657434722,3.15449993,158.16,158.09,12.27502]
[1727657434927,12.15,158.2,158.09,12.27502]
[1727657435229,3.1607,158.17,158.09,12.27502]
[1727657435427,3.21206149,158.16,158.09,12.27502]
[1727657435628,3.21206149,158.16,158.13,3.1613]
[1727657436424,3.1602,158.2,158.17,3.1606]
[1727657436623,0.12502,158.21,158.12,12.15]
[1727657437127,3.1605,158.18,158.09,12.27502]
[1727657437428,12.15,158.2,158.09,12.27502]
[1727657437626,3.1603,158.19,158.12,3.1616]
[1727657437821,3.1603,158.19,158.09,12.27502]
[1727657439029,3.1603,158.19,158.15,3.1609]
[1727657439831,3.1609,158.16,158.12,3.1616]
[1727657440036,15.38146593,158.16,158.09,0.12502]
[1727657440234,12.15,158.16,158.09,0.12502]
[1727657440731,12.15,158.14,158.09,0.12502]
[1727657441326,3.1615,158.13,158.09,3.28722]
[1727657441536,3.09455879,158.13,158.09,0.12502]
[1727657441737,1.3513,158.15,158.09,0.12502]
[1727657441939,4.5125,158.15,158.11,3.1617]
[1727657442134,3.1612,158.15,158.11,3.1617]
[1727657442340,3.18471921,158.14,158.11,3.1617]
[1727657443436,3.1612,158.15,158.11,3.1617]
[1727657443629,3.17238147,158.14,158.12,3.1616]
[1727657443835,3.15181856,158.15,158.1,12.15]
[1727657444041,3.1607,158.17,158.1,12.15]
[1727657444241,3.1607,158.17,158.13,3.1613]
[1727657448148,3.1607,158.17,158.14,3.1612]
[1727657448356,12.15,158.22,158.12,12.15]
[1727657448649,12.15,158.22,158.13,1.3435]
[1727657449041,3.1603,158.19,158.15,3.1608]
[1727657450044,3.1603,158.19,158.16,3.1608]
[1727657450349,3.28492,158.21,158.14,12.15]
[1727657451042,0.12502,158.21,158.14,12.15]
[1727657451249,0.12502,158.21,158.18,3.1602]
[1727657451449,0.12502,158.21,158.14,12.15]
[1727657451839,0.12502,158.21,158.19,3.1602]
[1727657454243,0.12502,158.21,158.18,3.1604]
[1727657455858,0.12502,158.21,158.19,3.1602]
[1727657456554,3.1602,158.19,158.16,3.1608]
[1727657456854,0.12502,158.21,158.13,1.3435]
[1727657457153,12.15,158.2,158.13,1.3435]
[1727657457742,3.1605,158.18,158.14,3.1611]
[1727657458452,3.1605,158.18,158.11,1.3272]
[1727657458453,12.15,158.18,158.11,1.3272]
[1727657458955,12.15,158.18,158.1,1.3517]
[1727657459449,12.15,158.18,158.09,0.12502]
[1727657459655,3.1614,158.14,158.1,3.1619]
[1727657459947,3.13346552,158.14,158.09,0.12502]
[1727657460148,3.1616,158.13,158.09,3.28722]
[1727657460448,3.09226929,158.12,158.09,0.12502]
[1727657460650,3.19855024,158.16,158.09,0.12502]
[1727657460854,3.1608,158.17,158.13,3.1613]
[1727657461059,0.12502,158.21,158.12,12.15]
[1727657461245,0.12502,158.21,158.13,2.5488]
[1727657461551,3.1603,158.19,158.13,2.5488]
[1727657462137,3.1603,158.19,158.16,3.1608]
[1727657462338,0.12502,158.21,158.16,3.1608]
[1727657462547,0.12502,158.21,158.13,2.5488]
[1727657462548,0.12502,158.21,158.14,12.15]
[1727657463345,0.12502,158.21,158.19,3.1601]
[1727657463861,0.12502,158.21,158.2,3.16]
[1727657464354,13.4571,158.3,158.19,12.15]
[1727657464549,92.5326931,158.31,158.21,12.15]
[1727657464550,0.12502,158.27,158.21,12.15]
[1727657464748,0.12502,158.27,158.23,12.15]
[1727657464953,0.12502,158.27,158.25,3.1589]
[1727657465150,0.12502,158.27,158.23,12.15]
[1727657466145,0.12502,158.27,158.26,3.1588]
[1727657466350,3.15275325,158.31,158.25,12.15]
[1727657466552,0.12502,158.33,158.25,12.15]
[1727657467057,3.34826126,158.33,158.25,12.15]
[1727657467247,3.1577,158.32,158.27,3.1586]
[1727657467650,3.1577,158.32,158.25,12.15]
[1727657467954,6.50576126,158.33,158.28,3.1584]
[1727657468562,3.1578,158.32,158.27,3.1586]
[1727657469056,0.12502,158.33,158.3,3.158]
[1727657469251,0.12502,158.33,158.27,12.15]
[1727657469557,0.12502,158.33,158.28,1.3609]
[1727657469751,12.66786634,158.33,158.32,3.1576]
[1727657469947,0.12502,158.33,158.32,3.1576]
[1727657472751,0.12502,158.33,158.31,3.1578]
[1727657473156,0.12502,158.33,158.3,2.6096]
[1727657473349,0.12502,158.33,158.32,3.1576]
[1727657474460,0.12502,158.33,158.31,3.1578]
[1727657476849,0.12502,158.33,158.32,3.1576]
[1727657477352,0.12502,158.33,158.31,3.1578]
[1727657477548,0.12502,158.33,158.28,1.3609]
[1727657477752,0.12502,158.33,158.23,12.15]
[1727657477955,3.1584,158.29,158.24,3.1591]
[1727657478257,3.10711936,158.29,158.24,3.1591]
[1727657478463,3.1581,158.3,158.24,3.1591]
[1727657478652,3.18893554,158.29,158.25,3.159]
[1727657478962,12.15,158.32,158.22,3.8694]
[1727657479165,12.15,158.32,158.25,3.159]
[1727657479166,3.1582,158.29,158.25,3.159]
[1727657479458,3.22336783,158.29,158.23,12.15]
[1727657479651,12.15,158.32,158.23,12.15]
[1727657480163,3.1582,158.3,158.23,12.15]
[1727657480351,3.21752554,158.29,158.23,12.15]
[1727657480664,12.15,158.32,158.23,12.15]
[1727657481351,3.1582,158.29,158.25,3.1589]
[1727657481555,6.2464683,158.29,158.25,3.1589]
[1727657481748,3.0882683,158.29,158.25,3.1589]
[1727657481948,3.1585,158.28,158.25,3.1589]
[1727657483357,6.25036069,158.29,158.25,3.1589]
[1727657483561,3.1583,158.29,158.25,3.1589]
[1727657484361,3.13156473,158.28,158.25,3.1589]
[1727657484867,12.15,158.32,158.22,3.8694]
[1727657485164,12.15,158.27,158.22,1.2688]
[1727657485350,15.37637444,158.27,158.22,1.2688]
[1727657485550,6.38517444,158.27,158.22,4.4283]
[1727657485961,12.15,158.31,158.22,1.2688]
[1727657486153,3.1583,158.29,158.25,3.1589]
[1727657486357,3.21520604,158.28,158.22,1.2688]
[1727657486555,12.15,158.31,158.22,1.2688]
[1727657487363,3.1585,158.28,158.24,3.1592]
[1727657487565,6.35158016,158.28,158.22,1.2688]
[1727657487868,3.1585,158.28,158.22,1.2688]
[1727657488365,6.35948226,158.28,158.22,1.2688]
[1727657488567,3.1581,158.3,158.26,3.1587]
[1727657488754,3.10236407,158.29,158.26,3.1587]
[1727657489668,3.10236407,158.29,158.27,3.1586]
[1727657489870,0.12502,158.33,158.27,12.15]
[1727657490861,0.12502,158.33,158.32,3.1576]
[1727657497362,3.1577,158.32,158.28,3.1583]
[1727657497565,0.12502,158.33,158.28,12.15]
[1727657498179,0.12502,158.33,158.32,3.1576]
[1727657501382,0.12502,158.33,158.32,15.3076]
[1727657502778,0.12502,158.33,158.31,1.3001]
[1727657502978,0.12502,158.33,158.28,12.15]
[1727657503376,0.12502,158.33,158.32,3.1576]
[1727657503771,0.12502,158.33,158.28,12.15]
[1727657503972,0.12502,158.33,158.31,3.1578]
[1727657504277,0.12502,158.33,158.3,12.15]
[1727657504478,0.12502,158.33,158.32,3.1576]
[1727657513478,0.12502,158.33,158.32,15.3076]
[1727657517184,0.12502,158.33,158.32,3.1576]
[1727657519474,0.12502,158.33,158.32,10.9176]
[1727657524796,0.12502,158.33,158.26,1.3443]
[1727657524989,7.88502,158.33,158.27,7.76]
[1727657525181,0.12502,158.33,158.28,7.76]
[1727657525385,0.12502,158.33,158.3,7.76]
[1727657525590,0.12502,158.33,158.31,7.76]
[1727657526484,0.12502,158.33,158.32,3.1576]
[1727657528091,0.12502,158.33,158.31,10.9178]
[1727657528392,0.12502,158.33,158.31,7.76]
[1727657529284,0.12502,158.33,158.32,3.1576]
[1727657530087,0.12502,158.39,158.31,7.76]
[1727657530289,0.12502,158.39,158.36,7.76]
[1727657530486,3.33164552,158.39,158.36,7.76]
[1727657530790,6.48794552,158.39,158.36,7.76]
[1727657535100,6.48794552,158.39,158.36,10.9168]
[1727657535893,3.33164552,158.39,158.36,7.76]
[1727657536094,3.33164552,158.39,158.37,3.1566]
[1727657536095,15.91004231,158.39,158.37,3.1566]
[1727657536408,3.33164552,158.39,158.36,7.76]
[1727657537086,15.93053205,158.39,158.36,7.76]
[1727657537285,12.59888653,158.38,158.36,7.76]
[1727657537595,0.12502,158.39,158.37,7.76]
[1727657537900,0.12502,158.39,158.38,3.1564]
[1727657538293,12.72390653,158.39,158.38,10.9164]
[1727657538496,12.72390653,158.39,158.38,3.1564]
[1727657538497,0.12502,158.39,158.38,3.1564]
[1727657539195,0.12502,158.39,158.36,3.1568]
[1727657539397,12.72390653,158.39,158.36,3.1568]
[1727657539596,7.88502,158.39,158.32,2.6372]
[1727657539790,7.76,158.36,158.32,1.3252]
[1727657539990,7.76,158.36,158.3,7.76]
[1727657540284,10.9169,158.36,158.32,3.1575]
[1727657540902,3.1571,158.35,158.32,3.1575]
[1727657541091,7.76,158.34,158.27,0.12502]
[1727657541292,3.14609001,158.33,158.28,7.76]
[1727657542291,12.59888653,158.34,158.3,7.76]
[1727657542492,12.59165549,158.36,158.3,7.76]
[1727657542696,20.35165549,158.36,158.3,7.76]
[1727657542902,12.59165549,158.35,158.3,7.76]
[1727657543292,3.1571,158.35,158.31,3.1578]
[1727657543688,7.76,158.36,158.32,7.76]
[1727657543898,10.9169,158.36,158.32,7.76]
[1727657544099,23.50855549,158.36,158.32,7.76]
[1727657544398,4.4333,158.37,158.33,3.1574]
[1727657545101,22.74658963,158.37,158.33,7.76]
[1727657545402,22.74658963,158.37,158.34,7.76]
[1727657545899,22.74658963,158.37,158.34,10.9172]
[1727657546111,22.74658963,158.37,158.34,3.1572]
[1727657546300,12.59152183,158.36,158.34,3.1572]
[1727657546602,3.1567,158.37,158.34,3.1572]
[1727657546803,3.1565,158.38,158.34,3.1572]
[1727657547503,7.88502,158.39,158.33,7.76]
[1727657547504,10.28118368,158.39,158.33,12.13]
[1727657547704,0.12502,158.39,158.33,12.13]
[1727657547902,0.12502,158.39,158.34,1.3519]
[1727657548099,0.12502,158.39,158.35,12.13]
[1727657548404,0.12502,158.39,158.37,12.13]
[1727657548797,0.12502,158.39,158.38,3.1564]
[1727657550104,0.12502,158.39,158.35,12.13]
[1727657550309,0.12502,158.39,158.37,3.1566]
[1727657550902,0.12502,158.39,158.34,1.3519]
[1727657551603,0.12502,158.39,158.35,3.1569]
[1727657552017,12.72088262,158.39,158.35,3.1569]
[1727657552701,0.12502,158.39,158.36,3.1568]
[1727657552901,22.87270415,158.39,158.36,3.1568]
[1727657553107,22.87270415,158.39,158.34,1.3519]
[1727657553316,0.12502,158.39,158.35,12.13]
[1727657553719,0.12502,158.39,158.38,3.1564]
[1727657554010,0.12518,158.47,158.38,12.13]
[1727657554011,22.8625029,158.45,158.38,12.13]
[1727657554210,22.7374829,158.44,158.41,3.1557]
[1727657554406,22.7374829,158.43,158.41,3.1557]
[1727657554607,22.7374829,158.42,158.41,3.1557]
[1727657554918,12.58660638,158.42,158.41,3.1557]
[1727657555105,0.12502,158.45,158.41,3.1557]
[1727657555816,22.86730661,158.45,158.39,12.13]
[1727657556112,22.86730661,158.45,158.41,3.1557]
[1727657556519,22.86730661,158.45,158.4,3.1559]
[1727657556699,22.86730661,158.45,158.39,12.13]
[1727657557106,26.02250661,158.45,158.41,3.1557]
[1727657557306,12.58660638,158.44,158.37,12.13]
[1727657557704,3.1554,158.44,158.39,3.1562]
[1727657558013,25.89768661,158.44,158.37,12.13]
[1727657558207,22.74228661,158.43,158.37,12.13]
[1727657558402,3.0930341,158.42,158.37,12.13]
[1727657558709,25.83532071,158.42,158.35,12.13]
[1727657558912,22.74228661,158.41,158.39,3.1562]
[1727657559618,25.89828661,158.41,158.37,3.1566]
[1727657559818,12.58660638,158.4,158.37,3.1566]
[1727657560011,3.156,158.41,158.37,3.1566]
[1727657560218,3.156,158.4,158.36,3.1568]
[1727657560416,25.84647462,158.42,158.34,1.3519]
[1727657560712,25.90944052,158.41,158.36,3.1567]
[1727657560920,22.75344052,158.4,158.34,1.3519]
[1727657561914,22.75344052,158.4,158.36,3.1567]
[1727657562310,3.1563,158.39,158.36,3.1567]
[1727657562510,3.1563,158.39,158.35,3.157]
[1727657563209,3.1565,158.38,158.34,3.1572]
[1727657563817,22.75344052,158.4,158.33,0.12502]
[1727657564024,22.75344052,158.4,158.35,3.157]
[1727657564025,3.1563,158.39,158.35,3.157]
[1727657564215,12.58660638,158.39,158.33,0.12502]
[1727657564909,22.75344052,158.4,158.33,0.12502]
[1727657565224,3.1566,158.38,158.34,3.1572]
[1727657566119,22.75344052,158.4,158.33,0.12502]
[1727657566325,12.13,158.38,158.33,0.12502]
[1727657566820,3.1572,158.35,158.33,0.12502]
[1727657567016,12.13,158.36,158.33,0.12502]
[1727657567321,3.1572,158.34,158.33,0.12502]
[1727657570520,15.76303867,158.35,158.33,0.12502]
[1727657570827,3.1571,158.35,158.33,0.12502]
[1727657571815,12.6038136,158.37,158.33,0.12502]
[1727657572115,3.1569,158.36,158.33,0.12502]
[1727657572311,12.6038136,158.36,158.33,0.12502]
[1727657572611,22.76953116,158.37,158.33,0.12502]
[1727657572814,3.1569,158.36,158.33,0.12502]
[1727657573012,15.7607136,158.36,158.33,0.12502]
[1727657573221,12.6038136,158.35,158.33,0.12502]
[1727657573432,15.7609136,158.35,158.33,0.12502]
[1727657573620,3.1571,158.35,158.33,0.12502]
[1727657574133,87.18,158.42,158.33,0.12502]
[1727657574134,12.60439877,158.36,158.33,0.12502]
[1727657574321,16.67449159,158.41,158.33,0.12502]
[1727657574516,3.1565,158.38,158.34,3.1572]
[1727657575019,22.77285875,158.39,158.34,3.1572]
[1727657575221,22.77285875,158.38,158.34,3.1572]
[1727657575415,12.6059426,158.37,158.35,3.157]
[1727657575619,22.77665843,158.4,158.33,0.12502]
[1727657575825,3.1563,158.39,158.33,0.12502]
[1727657576024,25.93295843,158.39,158.35,3.1569]
[1727657576227,12.6059426,158.38,158.35,3.1569]
[1727657576630,3.1563,158.39,158.35,3.1569]
[1727657577029,25.93295249,158.39,158.35,3.1569]
[1727657577230,12.6059426,158.38,158.35,3.1569]
[1727657577627,3.1563,158.39,158.35,3.1569]
[1727657577826,15.7622426,158.39,158.35,3.1569]
[1727657578317,12.6059426,158.38,158.33,0.12502]
[1727657578522,12.6059426,158.38,158.36,3.1567]
[1727657578824,12.6059426,158.38,158.33,0.12502]
[1727657579024,10.17095564,158.39,158.36,3.1567]
[1727657579226,22.77689824,158.4,158.36,3.1567]
[1727657580329,3.1563,158.39,158.36,3.1567]
[1727657580529,25.93319824,158.39,158.36,3.1567]
[1727657580728,15.7622426,158.39,158.36,3.1567]
[1727657580928,12.6059426,158.38,158.36,3.1567]
[1727657581119,3.1563,158.39,158.36,3.1567]
[1727657581522,22.77696517,158.39,158.33,0.12502]
[1727657581733,22.77777083,158.4,158.33,0.12502]
[1727657581934,10.17181952,158.39,158.37,3.1565]
[1727657582130,22.77776212,158.4,158.37,3.1565]
[1727657583333,22.77776212,158.4,158.34,13.4123]
[1727657583736,22.77776212,158.4,158.36,12.13]
[1727657583932,14.0845626,158.45,158.36,12.13]
[1727657584140,3.1555,158.43,158.36,12.13]
[1727657584343,25.92591067,158.43,158.36,12.13]
[1727657584633,22.77041067,158.42,158.4,3.156]
[1727657585227,10.16446807,158.41,158.4,3.156]
[1727657585429,22.77041067,158.43,158.4,3.156]
[1727657585938,22.77041067,158.43,158.38,15.2864]
[1727657586237,22.77041067,158.42,158.38,12.13]
[1727657586448,22.77041067,158.44,158.38,12.13]
[1727657586937,22.77041067,158.44,158.41,3.1558]
[1727657589035,22.77041067,158.44,158.38,12.13]
[1727657589239,22.77041067,158.43,158.42,3.1555]
[1727657589640,10.16446807,158.43,158.42,10.9055]
[1727657589839,22.89543067,158.45,158.42,10.9055]